Cogmind - Beta 10.1 @@@ ROGUE MODE // 2020.10.07 @ 21:08:50 // AFD2019/Pay2Buy Player: Hermelin Result: Destroyed by 8R-AWN with 8R-AWN's Boregun Performance ------------- Evolutions (0) 0 Regions Visited (3) 600 Robots Destroyed (14) 70 Value Destroyed (101) 101 Prototype IDs (23) 460 Alien Tech Used (0) 0 Bonus (-36) -36 TOTAL SCORE: 1195 Bonus ------- Aligned with FarCom 300 Friendly Fire -336 Cogmind --------- Core Integrity 0/250 Matter 288/300 Energy 44/100 System Corruption 5% Temperature Cool (0) Movement Core (50) Location -10/Exiles Parts ------- > --- POWER (1) -------- (None) > --- PROPULSION (2) --- (None) > --- UTILITY (2) ------ (None) > --- WEAPON (2) ------- Heavy EM Pulse Gun > --- INVENTORY (10) --- ECM Suite Advanced Assault Cannon Enhanced Flamer Heavy Hammer Peak State ------------ > --- POWER ------------ (None) > --- PROPULSION ------- Spiked Treads Advanced Treads > --- UTILITY ---------- Thermal Converter Improved Shield Generator > --- WEAPON ----------- Heavy EM Pulse Gun Proton Missile Launcher > --- INVENTORY -------- ECM Suite Advanced Assault Cannon Enhanced Flamer Heavy Hammer [Rating: 19] Favorites ----------- Power None Propulsion Spiked Treads Treads Spiked Treads Utility Improved Shield Generator Device Improved Shield Generator Weapon Heavy Hammer Energy Gun Heavy EM Pulse Gun Launcher Proton Missile Launcher Impact Weapon Heavy Hammer Build | -11 -10 -10 -10 ------- Run | Scr Mat Min Exi Slots Evolved . | . . . . Power . | . . . . Propulsion . | . . . . Utility . | . . . . Weapon . | . . . . Parts Attached 3 | . . 1 2 Power . | . . . . Engine . | . . . . Core . | . . . . Reactor . | . . . . Propulsion . | . . . . Treads . | . . . . Leg . | . . . . Wheel . | . . . . Hover . | . . . . Flight . | . . . . Utility . | . . . . Device . | . . . . Storage . | . . . . Processor . | . . . . Hackware . | . . . . Protection . | . . . . Artifact . | . . . . Weapon 3 | . . 1 2 Energy Gun 1 | . . . 1 Energy Cannon . | . . . . Ballistic Gun . | . . . . Ballistic Cannon . | . . . . Launcher 2 | . . 1 1 Special Weapon . | . . . . Impact Weapon . | . . . . Slashing Weapon . | . . . . Piercing Weapon . | . . . . Special Melee Weapon . | . . . . Unidentified Prototypes . | . . . . Parts Lost 6 | . . 1 5 Power . | . . . . Propulsion 2 | . . . 2 Utility 2 | . . . 2 Weapon 2 | . . 1 1 Highest Loss Streak 5 | . . 1 5 Average Slot Usage (%) 65 | . 30 28 79 Treads 23 | . 14 14 26 Device 17 | . . . 25 Energy Gun 9 | . . . 13 Impact Weapon 13 | . 14 14 13 Naked Turns . | . . . . Heaviest Build 11 | 3 7 7 11 Greatest Support 42 | 3 3 3 42 Greatest Overweight (x) 2 | . 2 2 . Average Overweight (x) . | . . . . Largest Inventory Capacity 10 | 10 10 10 10 Average Capacity 10 | 10 10 10 10 Most Carried 8 | . 1 5 8 Average Carried 4 | . . 3 6 Final Capacity 10 | 10 10 10 10 Final Carried 4 | . 1 4 4 Class Distribution -------------------- 100% | Mutant Dominant Class ---------------- Mutant | -10/Materials Mutant | -10/Mines Mutant | -10/Exiles Resources | -11 -10 -10 -10 ----------- Run | Scr Mat Min Exi Matter Collected 223 | 146 40 37 . Remotely . | . . . . Salvage Created 276 | 146 60 40 30 Parts . | . . . . Haulers Intercepted . | . . . . Recyclers Shooed . | . . . . Parts Field Recycled . | . . . . Retrieved Matter . | . . . . Parts Self-Destructed . | . . . . Prevented . | . . . . Kills | -11 -10 -10 -10 ------- Run | Scr Mat Min Exi Combat Hostiles Destroyed 6 | . 3 3 . Melee 1 | . . 1 . AOE 5 | . 3 2 . Classes Destroyed 4 | 2 1 . 1 Tunneler 5 | 5 . . . Recycler 1 | 1 . . . Swarmer 6 | . 3 3 . Assembled 2 | . . . 2 Best Kill Streak 6 | 6 3 3 . Combat Bots Only 3 | . 3 3 . Max Kills in Single Turn 2 | 1 1 2 2 Gunslinging . | . . . . Exploded 2 | . 1 2 . Melee 1 | . . 1 . Uniques/NPCs Destroyed . | . . . . Combat | -11 -10 -10 -10 -------- Run | Scr Mat Min Exi Damage Taken 877 | . 102 55 720 Core 251 | . . 9 242 Absorbed by Shields . | . . . . Core Remaining (%) 100 | 100 . . . Volleys Fired 8 | . 3 2 3 Largest 1 | . 1 1 1 Hottest 39 | . 33 33 39 Shots Fired 8 | . 3 2 3 Gun . | . . . . Cannon . | . . . . Launcher 8 | . 3 2 3 Special . | . . . . Kinetic . | . . . . Thermal . | . . . . Explosive . | . . . . Electromagnetic 8 | . 3 2 3 Robot Hit Streak 2 | . 2 1 2 Robot Miss Streak 2 | . 1 . 2 Penetration Max . | . . . . Secondary Targets . | . . . . Shots Hit Robots 15 | 10 2 2 1 Core Hits 16 | 2 4 3 7 Critical Hits . | . . . . Critical Kills . | . . . . Critical Parts Destroyed . | . . . . Melee Attacks 16 | 15 . 1 . Impact 16 | 15 . 1 . Slashing . | . . . . Piercing . | . . . . Sneak Attacks 6 | 6 . . . Combat Hostiles . | . . . . Follow-up Attacks . | . . . . Damage Inflicted 919 | 635 90 76 118 Guns . | . . . . Cannons . | . . . . Explosions 248 | . 90 40 118 Melee 671 | 635 . 36 . Ramming . | . . . . Kinetic . | . . . . Thermal . | . . . . Explosive . | . . . . Electromagnetic 248 | . 90 40 118 Impact 671 | 635 . 36 . Slashing . | . . . . Piercing . | . . . . Highest Corruption 5 | . . 1 5 Average Corruption 1 | . . 1 1 Corruption Purged . | . . . . Effects 1 | . . . 1 Energy Discharges 1 | . . . 1 Overload Shots . | . . . . Overflow Damage 244 | 239 . 5 . Projectiles . | . . . . Explosions 5 | . . 5 . Melee 239 | 239 . . . Knockbacks 3 | 3 . . . Impact 3 | 3 . . . Kinetic . | . . . . Secondary . | . . . . Self-Inflicted Damage 62 | . 29 33 . Shots 4 | . 2 2 . Rammed . | . . . . Targets Rammed . | . . . . Kicked . | . . . . Crushed . | . . . . Highest Temperature 14 | . . . 14 Average Temperature 12 | . . . 12 Received Heat Transfer 120 | . . . 120 Siege Activations . | . . . . Robots Corrupted . | . . . . Combat Hostiles . | . . . . Parts Fried . | . . . . Impact Corruptions 10 | 10 . . . Robots Melted . | . . . . Combat Hostiles . | . . . . Parts Melted . | . . . . Heat Transferred . | . . . . Parts Sabotaged . | . . . . Parts Stolen . | . . . . Parts Stripped . | . . . . Power Chain Reactions . | . . . . Missiles Intercepted . | . . . . Alert | -11 -10 -10 -10 ------- Run | Scr Mat Min Exi Peak Influence 117 | 30 117 112 . Initial 45 | . 19 45 . Average 56 | 7 67 77 . Maximum Alert Level . | . . . . Low Security (%) 100 | 100 100 100 . Level 1 . | . . . . Level 2 . | . . . . Level 3 . | . . . . Level 4 . | . . . . Level 5 . | . . . . High Security . | . . . . Max Security . | . . . . Squads Dispatched 1 | . 1 . . Investigation 1 | . 1 . . Extermination . | . . . . Reinforcement . | . . . . Assault . | . . . . Garrison . | . . . . Intercept . | . . . . Construction Impeded . | . . . . Haulers Reinforced . | . . . . Stealth | -11 -10 -10 -10 --------- Run | Scr Mat Min Exi Distress Signals . | . . . . Communications Jammed . | . . . . Distress Signals . | . . . . Times Spotted 11 | . 3 2 6 Peak Tracking Total 7 | . 3 3 7 Tactical Retreats . | . . . . Traps | -11 -10 -10 -10 ------- Run | Scr Mat Min Exi Traps Triggered . | . . . . Indirectly . | . . . . Trap Hack Attempts . | . . . . Triggered . | . . . . Disarmed . | . . . . Reprogrammed . | . . . . Reused 4 | . . . 4 Traps Extracted . | . . . . Installed 4 | . . . 4 Triggered . | . . . . Machines | -11 -10 -10 -10 ---------- Run | Scr Mat Min Exi Machines Disabled 4 | . . . 4 Max in Single Turn 3 | . . . 3 Machines Sabotaged . | . . . . Garrisons Compromised . | . . . . Overloaded Fab Kills . | . . . . Fab Network Shutdowns . | . . . . Hacking | -11 -10 -10 -10 --------- Run | Scr Mat Min Exi Machines Accessed 3 | . 2 . 1 Terminals 2 | . 2 . . Fabricators . | . . . . Repair Stations . | . . . . Recycling Units . | . . . . Scanalyzers . | . . . . Garrison Access . | . . . . Total Hacks 8 | . 7 . 1 Successful 5 | . 4 . 1 Failed 3 | . 3 . . Catastrophic 1 | . 1 . . Database Lockouts . | . . . . Manual 6 | . 5 . 1 Terminals 7 | . 7 . . Fabricators . | . . . . Repair Stations . | . . . . Recycling Units . | . . . . Scanalyzers . | . . . . Garrison Access . | . . . . Terminal Hacks 4 | . 3 . 1 Robot Analysis 2 | . 2 . . Branch Access Points 1 | . 1 . . EX-Prototype ID Bank 1 | . . . 1 Fabricator Hacks . | . . . . Repair Station Hacks . | . . . . Recycling Unit Hacks . | . . . . Scanalyzer . | . . . . Garrison Access Hacks . | . . . . Unauthorized Hacks 1 | . 1 . . Terminals 1 | . 1 . . Track 1 | . 1 . . Fabricators . | . . . . Repair Stations . | . . . . Recycling Units . | . . . . Scanalyzers . | . . . . Garrison Access . | . . . . Data Cores Recovered . | . . . . Used . | . . . . Hacking Detections 2 | . 2 . . Full Trace Events 1 | . 1 . . Feedback Events . | . . . . Feedback Blocked . | . . . . Robot Schematics Acquired . | . . . . Robots Built . | . . . . Matter . | . . . . Time . | . . . . Total Robot Build Rating . | . . . . Part Schematics Acquired . | . . . . Parts Built . | . . . . Matter . | . . . . Time . | . . . . Total Part Build Rating . | . . . . Parts Repaired . | . . . . Time . | . . . . Parts Recycled . | . . . . Recycled Matter . | . . . . Retrieved Matter . | . . . . Retrieved Components . | . . . . Parts Scanalyzed . | . . . . Part Schematics Acquired . | . . . . Parts Damaged . | . . . . Bothacking | -11 -10 -10 -10 ------------ Run | Scr Mat Min Exi Used RIF Installer . | . . . . Robots Hacked . | . . . . Non-combat . | . . . . Combat . | . . . . Robot Hacks Applied . | . . . . Relay Couplers Released . | . . . . Robots Rewired . | . . . . Allies Hacked . | . . . . Hacks Repelled . | . . . . Allies | -11 -10 -10 -10 -------- Run | Scr Mat Min Exi Total Allies 3 | . . 3 . Largest Group 3 | . . 3 3 Highest-Rated Group 40 | . . 40 40 Highest-Rated Ally 16 | . . 16 16 Total Orders 3 | . . . 3 STAY 3 | . . . 3 Ally Attacks 20 | . . . 20 Total Damage 122 | . . . 122 Kills 1 | . . . 1 Allies Corrupted . | . . . . Allies Melted . | . . . . Intel | -11 -10 -10 -10 ------- Run | Scr Mat Min Exi Robot Analysis Total 2 | . 2 . . Derelict Logs Recovered . | . . . . Drone Launches . | . . . . Drone Recoveries . | . . . . Exploration | -11 -10 -10 -10 ------------- Run | Scr Mat Min Exi Turns Passed 863 | 84 56 160 563 Spaces Moved 668 | 78 76 189 325 Core 429 | 78 76 189 86 Treads 239 | . . . 239 Legs . | . . . . Wheels . | . . . . Hover . | . . . . Flight . | . . . . Fastest Speed 50 | 50 50 50 50 Average Speed 87 | 50 53 50 125 Slowest Speed 152 | 50 150 150 152 Overloaded Moves . | . . . . Propulsion Burnouts . | . . . . Robots Hopped . | . . . . Cave-ins Triggered . | . . . . Exploration Rate (%) 34 | 4 21 46 65 Regions Visited 3 Branch Regions 2 Pre-discovered Areas . | . . . . Known Exits Taken 1 | . 1 . . Unknown Exits Taken 2 | 1 . 1 . Scrap Searched . | . . . . Spaces Dug . | . . . . Terrain Destroyed . | . . . . Melee . | . . . . Projectile . | . . . . AOE . | . . . . Terrain Rammed . | . . . . Walls Destroyed . | . . . . Machines Disabled . | . . . . Actions | -11 -10 -10 -10 --------- Run | Scr Mat Min Exi Total 907 | 92 87 248 480 Wait 201 | . 8 52 141 Move 665 | 77 75 188 325 Hop . | . . . . Pick Up 4 | . . 4 . Fast Attach . | . . . . Attach 2 | . . 1 1 Detach 2 | . 1 . 1 Swap 1 | . . . 1 Drop 4 | . . . 4 Fire 8 | . 3 2 3 Melee 16 | 15 . 1 . Ram . | . . . . Kick . | . . . . Crush . | . . . . Escape Stasis . | . . . . Rewire . | . . . . Trap 4 | . . . 4 Miscellaneous . | . . . . Route ------- -11/Scrapyard -10/Materials (discovered 3 exits: [*Mat] / *Min x2) -10/Mines (discovered 2 exits: [*Mat] / *Exi) -10/Exiles History --------- Turn | Location | Event 2 | -11/Scrapyard | Discovered new exit (range 16) 85 | -11/Scrapyard | Entered Materials 89 | -10/Materials | Identified exit to Mines 135 | -10/Materials | Discovered new exit (range 16) 141 | -10/Materials | Entered Mines 143 | -10/Mines | Assisted by bots powering up and referring to "LRC-V3" 168 | -10/Mines | Discovered new exit (range 7) 187 | -10/Mines | Found a hidden stash of uninstalled traps 247 | -10/Mines | Deemed a non-threat by the Exiles lab entrance 247 | -10/Mines | Discovered new exit (range 5) 301 | -10/Mines | Entered Exiles 301 | -10/Exiles | Accompanied by 3 allies 313 | -10/Exiles | Met 8R-AWN 317 | -10/Exiles | Build established: Mutant 322 | -10/Exiles | Met EX-HEX 339 | -10/Exiles | Met EX-BIN 344 | -10/Exiles | Aligned with FarCom system 345 | -10/Exiles | Given EX-Vault access code 384 | -10/Exiles | Opened EX-Vault 419 | -10/Exiles | Warned to stay clear of 0b10 Research branches 472 | -10/Exiles | Met EX-DEC 544 | -10/Exiles | Visited The Gauntlet 837 | -10/Exiles | Attacked by the Exiles 856 | -10/Exiles | Core integrity fell below 50% 864 | -10/Exiles | Core integrity fell below 20% 864 | -10/Exiles | Destroyed by 8R-AWN with 8R-AWN's Boregun Last Messages --------------- 00850_ HV Slug penetrates Assembled Analyzer. 00850_ Penetrated by HV Slug. 00850_ HV Slug penetrates Assembled Analyzer. 00851_ as-73221 misfires. 00852_ HV Slug penetrates Machine. 00852_ HV Slug penetrates Wall. 00853_ Spk. Treads destroyed. 00855_ Penetrated by HV Slug. 00855_ HV Slug penetrates Wall. 00855_ Penetrated by HV Slug. 00855_ HV Slug penetrates Wall. 00856_ as-18644 destroyed. 00857_ HV Slug penetrates Wall. 00858_ Proton Missile Launcher destroyed. 00858_ System corrupted by crushing effect (+2). 00859_ Penetrated by HV Slug. 00861_ Critical hit. 00861_ Adv. Treads destroyed. 00864_ HV Slug penetrates Wall. 00864_ Penetrated by HV Slug. Map ----- +----------------------------------------------------+ | """#??????????????????????????????????? | | """#??????????????????????????????????? | | """#??????????????????????????????????? | | """#??????????????????????????????????? | | """##?????????????????????????????????? | | """""?????????????????????????????????? | | """##?????????????????????????????????? | | "X" """"??????????????????????????????????? | | """ #??????????????????????????????????? | | """""""""#??????????????????????????????????? | | ###########??????????????????????????????????? | | #????????????????????????????????????????????? | | #????????????????????????????????????????????? | | ##???????????????????????????????????????????? | | ##???####;######????????????????????????????? | | #####"""" """"##???????????????????????????? | | " """ """"##??????????????????????????? | | " " #??????????????????????????? | | """#??????????????????????????? | | a"#???????????#####??????????? | | " "##?????????##" #??????????? | | "###???????#" #??????????? | | "" ""#??????##" ##?????????? | | #""" #????### ###???????? | | #####""" ##???# ######### | | ????##""" g @##?## #""""## | | ?????#"""" aa ###^ | | ????##"" g ^ ## | | ?####"""" g #### | | ##""" % ""#?#"""""#### | | """ #"""##?#######??#### | | ######??????????????## | | a ##????????????????????? | | a ##?????????????????????? | | "" ""#??????????????????????? | | ##""" " " ""# % % ##??????????????????????? | | ######""" """## ##???????????????????????? | | #????###""""###########????????????????????????? | | #??????######??????????????????????????????????? | | ??????????????????????????????????????????????? | | ??????????????????????????????????????????????? | | ?????????????????????????????????????????????? | | "" ?????????????????????????????????????????????? | | #####????????????????????????????????????????????? | | ?????????????????????????????????????????????????? | | ?????????????????????????????????????????????????? | | ?????????????????????????????????????????????????? | | ?????????????????????????????????????????????????? | | ?????????????????????????????????????????????????? | | ?????????????????????????????????????????????????? | +----------------------------------------------------+ Best States ------------- Heat Dissipation 25 Energy Generation 5 Energy Capacity 100 Matter Stores 298 Matter Capacity 300 Sight Range 16 Terrain Scan Density 10 Thermal Conversion 30 Evasion (%) 50 Recoil Reduction 2 Item Schematics ----------------- None Robot Schematics ------------------ None Fabricated ------------ Nothing Alien Tech Used ----------------- None Achievements -------------- None Challenges ------------ None Cogshop Purchases (11) ------------------------ Spk. Treads (874) Hvy. Hammer (629) EMP Blaster (955) Proton Missile Launcher (Loot Box) Imp. Shield Generator (Loot Box) Enh. Flamer (Loot Box) Adv. Treads (Loot Box) Thermal Converter (Loot Box) Adv. Assault Cannon (Loot Box) ECM Suite (Loot Box) Hvy. EM Pulse Gun (Loot Box) Game ------ Seed GreatRegenerativeSource Manual? 0 Play Time 00:08:49 Cumulative 327.2 hours Start 2020.10.07 @ 21:00:40 End 2020.10.07 @ 21:08:50 Sessions 1 Manual Loads 0 Difficulty Rogue Special Mode AFD2019/Pay2Buy Game No. 131 Rogue 131 Adventurer 0 Explorer 0 Win Type - Total 4 Types 3/0/0/1/0/0/0/0/0 Lore% 85 Gallery% 90 Achievement% 72 Wizard Run 0 Options --------- ASCII 0 Keyboard 0 Movement Numpad Keybinds 0 Fullscreen 1 Font 18/SmallcapsGlow Map View 76x50 Tactical HUD 1 Map Filters NONE Filters NONE Steam X RUN: 928f8b5d-1fae-4ac8-b3d4-809dde7432fd